[Event "Titled Tuesday Blitz February 07 Late 2023"]
[White "ritanovikova"]
[Black "Gonzalez, Francisco Silva"]
[BlackFideId "1512285"]
[WhiteElo "2226"]
[BlackElo "2021"]
[Result "1-0"]
[Round "07"]
[TimeControl "180+2"]
[Date "2023.02.07"]
[WhiteClock "0:00:09"]
[BlackClock "0:00:19"]

1. e4 {[%clk 0:03:00]}  e5 {[%clk 0:02:57]} 2. Nf3 {[%clk 0:02:59]}  Nc6 {[%clk 0:02:53]} 3. Bc4 {[%clk 0:02:59]}  Bc5 {[%clk 0:02:29]} 4. c3 {[%clk 0:02:58]}  Nf6 {[%clk 0:02:23]} 5. d4 {[%clk 0:02:58]}  exd4 {[%clk 0:02:22]} 6. cxd4 {[%clk 0:02:59]}  Bb4+ {[%clk 0:02:22]} 7. Bd2 {[%clk 0:02:59]}  Bxd2+ {[%clk 0:02:21]} 8. Nbxd2 {[%clk 0:03:00]}  d5 {[%clk 0:02:21]} 9. exd5 {[%clk 0:03:00]}  Nxd5 {[%clk 0:02:20]} 10. O-O {[%clk 0:03:01]}  O-O {[%clk 0:02:19]} 11. Rc1 {[%clk 0:03:01]}  Bg4 {[%clk 0:02:18]} 12. h3 {[%clk 0:03:00]}  Bh5 {[%clk 0:02:15]} 13. Qb3 {[%clk 0:02:57]}  Na5 {[%clk 0:02:13]} 14. Qb5 {[%clk 0:02:48]}  Nxc4 {[%clk 0:02:12]} 15. Qxc4 {[%clk 0:02:47]}  c6 {[%clk 0:02:08]} 16. Ne5 {[%clk 0:02:41]}  Nf4 {[%clk 0:02:08]} 17. Ndf3 {[%clk 0:02:35]}  Qf6 {[%clk 0:02:04]} 18. Kh2 {[%clk 0:02:10]}  Bxf3 {[%clk 0:02:01]} 19. Nxf3 {[%clk 0:02:06]}  Rad8 {[%clk 0:01:59]} 20. b4 {[%clk 0:01:58]}  Qd6 {[%clk 0:01:52]} 21. Kh1 {[%clk 0:01:52]}  Qf6 {[%clk 0:01:45]} 22. b5 {[%clk 0:01:48]}  cxb5 {[%clk 0:01:44]} 23. Qxb5 {[%clk 0:01:47]}  Nxh3 {[%clk 0:01:43]} 24. Qxb7 {[%clk 0:01:40]}  Nf4 {[%clk 0:01:42]} 25. Qe4 {[%clk 0:01:11]}  Rfe8 {[%clk 0:01:41]} 26. Ne5 {[%clk 0:01:07]}  Qh4+ {[%clk 0:01:33]} 27. Kg1 {[%clk 0:01:04]}  Rxd4 {[%clk 0:01:28]} 28. Qf3 {[%clk 0:00:25]}  f6 {[%clk 0:00:57]} 29. Qb3+ {[%clk 0:00:25]}  Rd5 {[%clk 0:00:51]} 30. g3 {[%clk 0:00:14]}  Qh3 {[%clk 0:00:44]} 31. gxf4 {[%clk 0:00:09]}  Qxb3 {[%clk 0:00:44]} 32. axb3 {[%clk 0:00:09]}  fxe5 {[%clk 0:00:44]} 33. fxe5 {[%clk 0:00:10]}  Rdxe5 {[%clk 0:00:43]} 34. Rc7 {[%clk 0:00:10]}  Rg5+ {[%clk 0:00:44]} 35. Kh2 {[%clk 0:00:08]}  Re4 {[%clk 0:00:44]} 36. Rc3 {[%clk 0:00:08]}  Rh4+ {[%clk 0:00:42]} 37. Rh3 {[%clk 0:00:09]}  Rb4 {[%clk 0:00:43]} 38. Rc1 {[%clk 0:00:07]}  h6 {[%clk 0:00:42]} 39. Rg3 {[%clk 0:00:07]}  Rf5 {[%clk 0:00:41]} 40. Kg2 {[%clk 0:00:07]}  Rbf4 {[%clk 0:00:39]} 41. Rc2 {[%clk 0:00:07]}  Rf7 {[%clk 0:00:39]} 42. Rb2 {[%clk 0:00:07]}  a5 {[%clk 0:00:38]} 43. Rd3 {[%clk 0:00:07]}  Rb7 {[%clk 0:00:36]} 44. Rbd2 {[%clk 0:00:05]}  Kh7 {[%clk 0:00:34]} 45. Rc2 {[%clk 0:00:03]}  Rfb4 {[%clk 0:00:32]} 46. Rcc3 {[%clk 0:00:04]}  R7b6 {[%clk 0:00:31]} 47. Rg3 {[%clk 0:00:04]}  g5 {[%clk 0:00:25]} 48. Rcf3 {[%clk 0:00:04]}  Kg6 {[%clk 0:00:25]} 49. Rd3 {[%clk 0:00:04]}  h5 {[%clk 0:00:24]} 50. Rd5 {[%clk 0:00:04]}  g4 {[%clk 0:00:22]} 51. f3 {[%clk 0:00:04]}  Rxb3 {[%clk 0:00:20]} 52. fxg4 {[%clk 0:00:04]}  Rb2+ {[%clk 0:00:15]} 53. Kh3 {[%clk 0:00:04]}  h4 {[%clk 0:00:15]} 54. Kxh4 {[%clk 0:00:03]}  Rh2+ {[%clk 0:00:14]} 55. Rh3 {[%clk 0:00:04]}  Rxh3+ {[%clk 0:00:13]} 56. Kxh3 {[%clk 0:00:05]}  Ra6 {[%clk 0:00:14]} 57. Rd4 {[%clk 0:00:05]}  a4 {[%clk 0:00:15]} 58. Rd1 {[%clk 0:00:05]}  a3 {[%clk 0:00:15]} 59. Ra1 {[%clk 0:00:06]}  a2 {[%clk 0:00:16]} 60. Kg3 {[%clk 0:00:06]}  Ra3+ {[%clk 0:00:17]} 61. Kf2 {[%clk 0:00:07]}  Kg5 {[%clk 0:00:17]} 62. Ke2 {[%clk 0:00:07]}  Kf4 {[%clk 0:00:18]} 63. Kd2 {[%clk 0:00:08]}  Ke4 {[%clk 0:00:18]} 64. Kc2 {[%clk 0:00:09]}  Rg3 {[%clk 0:00:18]} 65. Kb2 {[%clk 0:00:09]}  Rxg4 {[%clk 0:00:18]} 66. Rxa2 {[%clk 0:00:09]}  Rg3 {[%clk 0:00:18]} 67. Ra3 {[%clk 0:00:09]}  Kd5 {[%clk 0:00:19]} 68. Rxg3 {[%clk 0:00:09]} 1-0


[Site "https://www.chess.com"]

[Event "Titled Tuesday Blitz February 07 Late 2023"]
[White "Mohammadian, Mohammad"]
[Black "Marcolino, Daniel Mattos"]
[WhiteFideId "12566055"]
[BlackFideId "2106841"]
[WhiteElo "1398"]
[BlackElo "2006"]
[Result "1-0"]
[Round "07"]
[TimeControl "180+2"]
[Date "2023.02.07"]
[WhiteClock "0:01:39"]
[BlackClock "0:01:13"]

1. e4 {[%clk 0:03:00]}  c6 {[%clk 0:03:00]} 2. d4 {[%clk 0:02:58]}  d5 {[%clk 0:03:01]} 3. Nd2 {[%clk 0:02:57]}  dxe4 {[%clk 0:03:00]} 4. Nxe4 {[%clk 0:02:57]}  Nd7 {[%clk 0:03:01]} 5. Nf3 {[%clk 0:02:56]}  Ngf6 {[%clk 0:03:01]} 6. Bd3 {[%clk 0:02:49]}  Nxe4 {[%clk 0:03:00]} 7. Bxe4 {[%clk 0:02:48]}  Nf6 {[%clk 0:03:00]} 8. Bd3 {[%clk 0:02:45]}  Bg4 {[%clk 0:03:01]} 9. c3 {[%clk 0:02:43]}  e6 {[%clk 0:02:58]} 10. O-O {[%clk 0:02:42]}  Bd6 {[%clk 0:02:55]} 11. Re1 {[%clk 0:02:40]}  O-O {[%clk 0:02:55]} 12. Bg5 {[%clk 0:02:35]}  Be7 {[%clk 0:02:46]} 13. Bc2 {[%clk 0:02:28]}  Bh5 {[%clk 0:02:43]} 14. h3 {[%clk 0:02:16]}  Bg6 {[%clk 0:02:42]} 15. Bxg6 {[%clk 0:02:14]}  hxg6 {[%clk 0:02:43]} 16. Ne5 {[%clk 0:02:11]}  Nd5 {[%clk 0:02:27]} 17. Bxe7 {[%clk 0:02:11]}  Qxe7 {[%clk 0:02:27]} 18. Nf3 {[%clk 0:02:07]}  b5 {[%clk 0:02:18]} 19. Qb3 {[%clk 0:02:03]}  a5 {[%clk 0:02:15]} 20. a4 {[%clk 0:02:02]}  Rfb8 {[%clk 0:02:08]} 21. axb5 {[%clk 0:01:59]}  cxb5 {[%clk 0:01:55]} 22. Qxd5 {[%clk 0:01:55]}  Qf6 {[%clk 0:01:26]} 23. Qe4 {[%clk 0:01:52]}  a4 {[%clk 0:01:19]} 24. Ne5 {[%clk 0:01:50]}  Rc8 {[%clk 0:01:13]} 25. Nd7 {[%clk 0:01:43]}  Qe7 {[%clk 0:01:13]} 26. Nb6 {[%clk 0:01:39]} 1-0


[Site "https://www.chess.com"]

[Event "Titled Tuesday Blitz February 07 Late 2023"]
[White "Zampronha, Wladimir Camilo"]
[Black "rikchessmx"]
[WhiteFideId "2103087"]
[WhiteElo "2176"]
[BlackElo "2230"]
[Result "1-0"]
[Round "07"]
[TimeControl "180+2"]
[Date "2023.02.07"]
[WhiteClock "0:00:15"]
[BlackClock "0:00:15"]

1. e4 {[%clk 0:02:55]}  d6 {[%clk 0:00:06]} 2. d4 {[%clk 0:02:54]}  g6 {[%clk 0:00:07]} 3. Nc3 {[%clk 0:02:54]}  Bg7 {[%clk 0:00:08]} 4. Bg5 {[%clk 0:02:53]}  Nf6 {[%clk 0:00:08]} 5. f4 {[%clk 0:02:45]}  Nxe4 {[%clk 0:00:09]} 6. Nxe4 {[%clk 0:02:44]}  h6 {[%clk 0:00:10]} 7. Bh4 {[%clk 0:02:43]}  c6 {[%clk 0:00:06]} 8. Qd2 {[%clk 0:02:35]}  Qb6 {[%clk 0:00:05]} 9. O-O-O {[%clk 0:02:34]}  Bf5 {[%clk 0:00:06]} 10. Nc3 {[%clk 0:02:22]}  Na6 {[%clk 0:00:04]} 11. Bf2 {[%clk 0:02:21]}  d5 {[%clk 0:00:03]} 12. Bd3 {[%clk 0:02:10]}  e6 {[%clk 0:00:04]} 13. Bxf5 {[%clk 0:02:10]}  gxf5 {[%clk 0:00:05]} 14. Nf3 {[%clk 0:02:09]}  Nb4 {[%clk 0:00:06]} 15. a3 {[%clk 0:02:05]}  a5 {[%clk 0:00:05]} 16. Kb1 {[%clk 0:02:05]}  Na6 {[%clk 0:00:05]} 17. Ne5 {[%clk 0:01:59]}  Nc7 {[%clk 0:00:04]} 18. g4 {[%clk 0:01:54]}  Nb5 {[%clk 0:00:05]} 19. gxf5 {[%clk 0:01:47]}  Nxa3+ {[%clk 0:00:04]} 20. Kc1 {[%clk 0:01:42]}  Bxe5 {[%clk 0:00:02]} 21. bxa3 {[%clk 0:01:30]}  Bd6 {[%clk 0:00:02]} 22. Nb1 {[%clk 0:01:26]}  Qb5 {[%clk 0:00:01]} 23. fxe6 {[%clk 0:01:13]}  fxe6 {[%clk 0:00:02]} 24. Rhe1 {[%clk 0:01:07]}  Kd7 {[%clk 0:00:03]} 25. Qe2 {[%clk 0:01:05]}  Rhe8 {[%clk 0:00:04]} 26. Qxb5 {[%clk 0:01:05]}  cxb5 {[%clk 0:00:05]} 27. Bg3 {[%clk 0:00:52]}  Rac8 {[%clk 0:00:06]} 28. Kb2 {[%clk 0:00:51]}  Rc4 {[%clk 0:00:06]} 29. Re3 {[%clk 0:00:36]}  Rec8 {[%clk 0:00:05]} 30. Rd2 {[%clk 0:00:32]}  b4 {[%clk 0:00:06]} 31. a4 {[%clk 0:00:32]}  b5 {[%clk 0:00:05]} 32. axb5 {[%clk 0:00:29]}  a4 {[%clk 0:00:05]} 33. f5 {[%clk 0:00:22]}  exf5 {[%clk 0:00:04]} 34. Bxd6 {[%clk 0:00:21]}  Kxd6 {[%clk 0:00:05]} 35. Re5 {[%clk 0:00:21]}  Rf8 {[%clk 0:00:04]} 36. Rf2 {[%clk 0:00:20]}  f4 {[%clk 0:00:04]} 37. Rh5 {[%clk 0:00:18]}  Rxd4 {[%clk 0:00:04]} 38. Rxh6+ {[%clk 0:00:18]}  Kc5 {[%clk 0:00:05]} 39. Rh3 {[%clk 0:00:15]}  Re8 {[%clk 0:00:05]} 40. Rd3 {[%clk 0:00:13]}  Re3 {[%clk 0:00:04]} 41. Rxe3 {[%clk 0:00:12]}  fxe3 {[%clk 0:00:03]} 42. Re2 {[%clk 0:00:13]}  Re4 {[%clk 0:00:03]} 43. Kc1 {[%clk 0:00:12]}  d4 {[%clk 0:00:04]} 44. Kd1 {[%clk 0:00:12]}  Kxb5 {[%clk 0:00:04]} 45. Rg2 {[%clk 0:00:12]}  Kc4 {[%clk 0:00:05]} 46. Ke2 {[%clk 0:00:13]}  b3 {[%clk 0:00:05]} 47. cxb3+ {[%clk 0:00:12]}  axb3 {[%clk 0:00:06]} 48. h3 {[%clk 0:00:12]}  d3+ {[%clk 0:00:07]} 49. Kf3 {[%clk 0:00:11]}  b2 {[%clk 0:00:07]} 50. Kxe4 {[%clk 0:00:10]}  d2 {[%clk 0:00:08]} 51. Nxd2+ {[%clk 0:00:09]}  exd2 {[%clk 0:00:07]} 52. Rg1 {[%clk 0:00:10]}  b1=Q+ {[%clk 0:00:07]} 53. Rxb1 {[%clk 0:00:10]}  Kc3 {[%clk 0:00:08]} 54. Rd1 {[%clk 0:00:10]}  Kc2 {[%clk 0:00:09]} 55. Rxd2+ {[%clk 0:00:11]}  Kxd2 {[%clk 0:00:10]} 56. h4 {[%clk 0:00:12]}  Kc3 {[%clk 0:00:10]} 57. h5 {[%clk 0:00:13]}  Kc4 {[%clk 0:00:11]} 58. h6 {[%clk 0:00:14]}  Kc5 {[%clk 0:00:12]} 59. h7 {[%clk 0:00:15]}  Kd6 {[%clk 0:00:12]} 60. h8=Q {[%clk 0:00:15]}  Kd7 {[%clk 0:00:12]} 61. Qe5 {[%clk 0:00:16]}  Kc6 {[%clk 0:00:13]} 62. Kd4 {[%clk 0:00:16]}  Kb6 {[%clk 0:00:14]} 63. Qc5+ {[%clk 0:00:15]}  Kb7 {[%clk 0:00:14]} 64. Qd6 {[%clk 0:00:15]}  Kc8 {[%clk 0:00:14]} 65. Qe7 {[%clk 0:00:15]}  Kb8 {[%clk 0:00:14]} 66. Kc5 {[%clk 0:00:16]}  Kc8 {[%clk 0:00:14]} 67. Kc6 {[%clk 0:00:16]}  Kb8 {[%clk 0:00:15]} 68. Qb7# {[%clk 0:00:15]} 1-0


[Site "https://www.chess.com"]

[Event "Titled Tuesday Blitz February 07 Late 2023"]
[White "Yoo, Christopher Woojin"]
[Black "So, Wesley"]
[WhiteFideId "30909694"]
[BlackFideId "5202213"]
[WhiteElo "2607"]
[BlackElo "2760"]
[Result "0-1"]
[Round "08"]
[TimeControl "180+2"]
[Date "2023.02.07"]
[WhiteClock "0:00:03"]
[BlackClock "0:00:08"]

1. e4 {[%clk 0:02:59]}  c5 {[%clk 0:02:59]} 2. Nf3 {[%clk 0:03:00]}  d6 {[%clk 0:02:59]} 3. d4 {[%clk 0:03:00]}  cxd4 {[%clk 0:03:00]} 4. Nxd4 {[%clk 0:03:01]}  Nf6 {[%clk 0:03:01]} 5. Nc3 {[%clk 0:03:02]}  a6 {[%clk 0:03:01]} 6. Be3 {[%clk 0:02:51]}  Ng4 {[%clk 0:03:00]} 7. Bc1 {[%clk 0:02:51]}  Nf6 {[%clk 0:03:00]} 8. Be3 {[%clk 0:02:52]}  e5 {[%clk 0:03:00]} 9. Nf3 {[%clk 0:02:51]}  Be7 {[%clk 0:02:58]} 10. Nd2 {[%clk 0:02:48]}  b5 {[%clk 0:02:45]} 11. a4 {[%clk 0:02:47]}  b4 {[%clk 0:02:45]} 12. Nd5 {[%clk 0:02:47]}  Nxd5 {[%clk 0:02:45]} 13. exd5 {[%clk 0:02:48]}  O-O {[%clk 0:02:35]} 14. a5 {[%clk 0:02:48]}  Nd7 {[%clk 0:02:26]} 15. Nc4 {[%clk 0:02:47]}  f5 {[%clk 0:02:26]} 16. Bd2 {[%clk 0:02:46]}  Rb8 {[%clk 0:02:24]} 17. Ra4 {[%clk 0:02:32]}  b3 {[%clk 0:02:24]} 18. cxb3 {[%clk 0:02:31]}  Bb7 {[%clk 0:01:55]} 19. Bb4 {[%clk 0:02:04]}  Qc7 {[%clk 0:01:55]} 20. Be2 {[%clk 0:02:03]}  Nc5 {[%clk 0:01:51]} 21. Bxc5 {[%clk 0:01:56]}  Qxc5 {[%clk 0:01:52]} 22. Nb6 {[%clk 0:01:52]}  Bd8 {[%clk 0:01:52]} 23. Nd7 {[%clk 0:01:39]}  Bxa5+ {[%clk 0:01:51]} 24. Kf1 {[%clk 0:01:39]}  Qc7 {[%clk 0:01:51]} 25. Nxb8 {[%clk 0:01:35]}  Rxb8 {[%clk 0:01:50]} 26. Rc4 {[%clk 0:01:08]}  Qf7 {[%clk 0:01:40]} 27. Ra4 {[%clk 0:00:54]}  Qc7 {[%clk 0:01:26]} 28. h4 {[%clk 0:00:49]}  Bb6 {[%clk 0:01:20]} 29. Rh3 {[%clk 0:00:36]}  Qc5 {[%clk 0:01:14]} 30. Rf3 {[%clk 0:00:35]}  g6 {[%clk 0:01:13]} 31. b4 {[%clk 0:00:22]}  Qxd5 {[%clk 0:00:51]} 32. Qxd5+ {[%clk 0:00:22]}  Bxd5 {[%clk 0:00:52]} 33. Rc3 {[%clk 0:00:22]}  Bd4 {[%clk 0:00:45]} 34. Rc7 {[%clk 0:00:20]}  Bb6 {[%clk 0:00:31]} 35. Rc1 {[%clk 0:00:19]}  Kf7 {[%clk 0:00:23]} 36. Rxa6 {[%clk 0:00:19]}  Ke6 {[%clk 0:00:23]} 37. Bc4 {[%clk 0:00:15]}  Bxc4+ {[%clk 0:00:20]} 38. Rxc4 {[%clk 0:00:16]}  Kd7 {[%clk 0:00:20]} 39. b5 {[%clk 0:00:15]}  Bd4 {[%clk 0:00:15]} 40. Rcc6 {[%clk 0:00:09]}  Bc5 {[%clk 0:00:14]} 41. b4 {[%clk 0:00:09]}  Bxb4 {[%clk 0:00:14]} 42. Rab6 {[%clk 0:00:08]}  Ra8 {[%clk 0:00:09]} 43. Rb7+ {[%clk 0:00:08]}  Ke6 {[%clk 0:00:10]} 44. g3 {[%clk 0:00:04]}  Bc5 {[%clk 0:00:09]} 45. Rxh7 {[%clk 0:00:02]}  Ra2 {[%clk 0:00:08]} 46. Rxc5 {[%clk 0:00:02]}  dxc5 {[%clk 0:00:07]} 47. b6 {[%clk 0:00:02]}  Rb2 {[%clk 0:00:07]} 48. b7 {[%clk 0:00:03]}  c4 {[%clk 0:00:07]} 49. Rc7 {[%clk 0:00:03]}  c3 {[%clk 0:00:07]} 50. Rxc3 {[%clk 0:00:02]}  Rxb7 {[%clk 0:00:08]} 51. Rc6+ {[%clk 0:00:03]}  Kf7 {[%clk 0:00:08]} 52. Kg2 {[%clk 0:00:03]}  e4 {[%clk 0:00:08]} 53. Kf1 {[%clk 0:00:03]}  Rb1+ {[%clk 0:00:08]} 0-1


[Site "https://www.chess.com"]

[Event "Titled Tuesday Blitz February 07 Late 2023"]
[White "Bluebaum, Matthias"]
[Black "Fedoseev, Vladimir"]
[WhiteFideId "24651516"]
[BlackFideId "24130737"]
[WhiteElo "2669"]
[BlackElo "2680"]
[Result "1-0"]
[Round "08"]
[TimeControl "180+2"]
[Date "2023.02.07"]
[WhiteClock "0:00:05"]
[BlackClock "0:00:02"]

1. d4 {[%clk 0:03:00]}  Nf6 {[%clk 0:02:58]} 2. c4 {[%clk 0:03:00]}  e6 {[%clk 0:02:58]} 3. Nc3 {[%clk 0:03:01]}  Bb4 {[%clk 0:02:58]} 4. e3 {[%clk 0:03:01]}  c5 {[%clk 0:02:59]} 5. Bd3 {[%clk 0:02:59]}  Nc6 {[%clk 0:02:54]} 6. Ne2 {[%clk 0:02:59]}  d5 {[%clk 0:02:48]} 7. cxd5 {[%clk 0:02:59]}  exd5 {[%clk 0:02:46]} 8. a3 {[%clk 0:02:57]}  c4 {[%clk 0:02:34]} 9. axb4 {[%clk 0:02:43]}  cxd3 {[%clk 0:02:34]} 10. Qxd3 {[%clk 0:02:43]}  Nxb4 {[%clk 0:02:34]} 11. Qb5+ {[%clk 0:02:43]}  Nc6 {[%clk 0:02:35]} 12. Nf4 {[%clk 0:02:43]}  a6 {[%clk 0:02:35]} 13. Qc5 {[%clk 0:02:36]}  Be6 {[%clk 0:02:35]} 14. O-O {[%clk 0:02:26]}  Rc8 {[%clk 0:02:35]} 15. Qa3 {[%clk 0:01:54]}  g5 {[%clk 0:02:27]} 16. Nxe6 {[%clk 0:01:38]}  fxe6 {[%clk 0:02:27]} 17. f4 {[%clk 0:01:38]}  g4 {[%clk 0:02:08]} 18. f5 {[%clk 0:01:37]}  e5 {[%clk 0:02:02]} 19. dxe5 {[%clk 0:01:36]}  Nxe5 {[%clk 0:02:01]} 20. Qb3 {[%clk 0:01:35]}  b5 {[%clk 0:01:50]} 21. Rxa6 {[%clk 0:01:33]}  O-O {[%clk 0:01:50]} 22. Qxb5 {[%clk 0:01:27]}  Kh8 {[%clk 0:01:49]} 23. Rd1 {[%clk 0:01:22]}  Qc7 {[%clk 0:01:40]} 24. Qa5 {[%clk 0:00:50]}  Qc4 {[%clk 0:01:38]} 25. Qa4 {[%clk 0:00:45]}  Qc7 {[%clk 0:01:16]} 26. Qd4 {[%clk 0:00:41]}  Nc6 {[%clk 0:00:53]} 27. Qf4 {[%clk 0:00:37]}  Qxf4 {[%clk 0:00:45]} 28. exf4 {[%clk 0:00:38]}  Ne7 {[%clk 0:00:45]} 29. Be3 {[%clk 0:00:26]}  Nxf5 {[%clk 0:00:44]} 30. Bf2 {[%clk 0:00:26]}  Kg7 {[%clk 0:00:41]} 31. h3 {[%clk 0:00:15]}  g3 {[%clk 0:00:40]} 32. Bd4 {[%clk 0:00:11]}  Nxd4 {[%clk 0:00:38]} 33. Rxd4 {[%clk 0:00:12]}  Ne4 {[%clk 0:00:35]} 34. Rxd5 {[%clk 0:00:07]}  Nxc3 {[%clk 0:00:32]} 35. bxc3 {[%clk 0:00:06]}  Rxc3 {[%clk 0:00:33]} 36. Rg5+ {[%clk 0:00:04]}  Kh8 {[%clk 0:00:29]} 37. Ra1 {[%clk 0:00:03]}  h6 {[%clk 0:00:25]} 38. Rg4 {[%clk 0:00:04]}  Kh7 {[%clk 0:00:19]} 39. Rf1 {[%clk 0:00:04]}  h5 {[%clk 0:00:19]} 40. Rg5 {[%clk 0:00:04]}  Kh6 {[%clk 0:00:20]} 41. h4 {[%clk 0:00:04]}  Re8 {[%clk 0:00:16]} 42. Kh1 {[%clk 0:00:04]}  Re2 {[%clk 0:00:15]} 43. Kg1 {[%clk 0:00:04]}  Rd3 {[%clk 0:00:14]} 44. f5 {[%clk 0:00:04]}  Re4 {[%clk 0:00:13]} 45. f6 {[%clk 0:00:02]}  Re8 {[%clk 0:00:05]} 46. f7 {[%clk 0:00:03]}  Rf8 {[%clk 0:00:05]} 47. Rg8 {[%clk 0:00:03]}  Rdd8 {[%clk 0:00:05]} 48. Rxg3 {[%clk 0:00:03]}  Rd7 {[%clk 0:00:04]} 49. Rgf3 {[%clk 0:00:03]}  Kg7 {[%clk 0:00:04]} 50. Rf5 {[%clk 0:00:04]}  Kg6 {[%clk 0:00:03]} 51. Rf6+ {[%clk 0:00:04]}  Kg7 {[%clk 0:00:03]} 52. Kh2 {[%clk 0:00:04]}  Rd4 {[%clk 0:00:01]} 53. R6f5 {[%clk 0:00:05]}  Rxh4+ {[%clk 0:00:01]} 54. Kg3 {[%clk 0:00:05]}  Rg4+ {[%clk 0:00:01]} 55. Kh3 {[%clk 0:00:06]}  Rg6 {[%clk 0:00:02]} 56. R1f4 {[%clk 0:00:05]}  Re6 {[%clk 0:00:02]} 57. Kh4 {[%clk 0:00:05]} 1-0


[Site "https://www.chess.com"]

[Event "Titled Tuesday Blitz February 07 Late 2023"]
[White "Salem, A.R. Saleh"]
[Black "Dominguez Perez, Leinier"]
[WhiteFideId "9301348"]
[BlackFideId "3503240"]
[WhiteElo "2677"]
[BlackElo "2739"]
[Result "1-0"]
[Round "08"]
[TimeControl "180+2"]
[Date "2023.02.07"]
[WhiteClock "0:00:10"]
[BlackClock "0:00:01"]

1. d4 {[%clk 0:02:56]}  d5 {[%clk 0:02:59]} 2. c4 {[%clk 0:02:57]}  dxc4 {[%clk 0:02:59]} 3. e4 {[%clk 0:02:57]}  e5 {[%clk 0:02:59]} 4. Nf3 {[%clk 0:02:57]}  Nf6 {[%clk 0:03:00]} 5. Bxc4 {[%clk 0:02:55]}  Nxe4 {[%clk 0:02:59]} 6. Nc3 {[%clk 0:02:03]}  Nd6 {[%clk 0:02:14]} 7. dxe5 {[%clk 0:02:01]}  Nxc4 {[%clk 0:02:11]} 8. Qa4+ {[%clk 0:02:02]}  c6 {[%clk 0:02:10]} 9. Qxc4 {[%clk 0:02:02]}  Be6 {[%clk 0:02:10]} 10. Qf4 {[%clk 0:01:58]}  Qd3 {[%clk 0:01:57]} 11. Be3 {[%clk 0:01:37]}  Na6 {[%clk 0:01:56]} 12. a3 {[%clk 0:00:58]}  Be7 {[%clk 0:01:22]} 13. Rd1 {[%clk 0:00:45]}  Qc4 {[%clk 0:01:23]} 14. Rd4 {[%clk 0:00:37]}  Qb3 {[%clk 0:01:23]} 15. O-O {[%clk 0:00:35]}  O-O {[%clk 0:01:11]} 16. Ne4 {[%clk 0:00:35]}  Nc7 {[%clk 0:01:03]} 17. Nf6+ {[%clk 0:00:33]}  Kh8 {[%clk 0:00:41]} 18. Ng5 {[%clk 0:00:25]}  Qc2 {[%clk 0:00:08]} 19. Ngxh7 {[%clk 0:00:20]}  Rfd8 {[%clk 0:00:05]} 20. Qh4 {[%clk 0:00:16]}  Rxd4 {[%clk 0:00:02]} 21. Bxd4 {[%clk 0:00:17]}  gxf6 {[%clk 0:00:01]} 22. Ng5+ {[%clk 0:00:12]}  Kg7 {[%clk 0:00:01]} 23. exf6+ {[%clk 0:00:11]}  Bxf6 {[%clk 0:00:01]} 24. Nxe6+ {[%clk 0:00:10]} 1-0


[Site "https://www.chess.com"]

[Event "Titled Tuesday Blitz February 07 Late 2023"]
[White "Chigaev, Maksim"]
[Black "Carlsen, Magnus"]
[WhiteFideId "4108116"]
[BlackFideId "1503014"]
[WhiteElo "2628"]
[BlackElo "2853"]
[Result "1-0"]
[Round "08"]
[TimeControl "180+2"]
[Date "2023.02.07"]
[WhiteClock "0:00:17"]
[BlackClock "0:00:12"]

1. e4 {[%clk 0:03:00]}  g6 {[%clk 0:02:56]} 2. d4 {[%clk 0:02:59]}  d6 {[%clk 0:02:56]} 3. Nc3 {[%clk 0:03:00]}  Bg7 {[%clk 0:02:54]} 4. Be3 {[%clk 0:03:00]}  a6 {[%clk 0:02:52]} 5. f3 {[%clk 0:03:00]}  b5 {[%clk 0:02:49]} 6. Qd2 {[%clk 0:03:00]}  Nd7 {[%clk 0:02:44]} 7. h4 {[%clk 0:02:59]}  h5 {[%clk 0:02:32]} 8. Nh3 {[%clk 0:02:59]}  Bb7 {[%clk 0:02:31]} 9. O-O-O {[%clk 0:02:59]}  c5 {[%clk 0:02:30]} 10. Ng5 {[%clk 0:02:56]}  cxd4 {[%clk 0:02:22]} 11. Bxd4 {[%clk 0:02:55]}  Bxd4 {[%clk 0:02:23]} 12. Qxd4 {[%clk 0:02:55]}  Ngf6 {[%clk 0:02:23]} 13. Kb1 {[%clk 0:02:38]}  Qb6 {[%clk 0:02:13]} 14. Qd2 {[%clk 0:02:38]}  Rc8 {[%clk 0:02:12]} 15. Ne2 {[%clk 0:02:32]}  Ne5 {[%clk 0:02:08]} 16. Nf4 {[%clk 0:02:29]}  b4 {[%clk 0:02:02]} 17. Be2 {[%clk 0:01:59]}  a5 {[%clk 0:02:02]} 18. Rhe1 {[%clk 0:01:51]}  a4 {[%clk 0:01:58]} 19. Qd4 {[%clk 0:01:39]}  Qc5 {[%clk 0:01:52]} 20. Qxc5 {[%clk 0:01:38]}  Rxc5 {[%clk 0:01:50]} 21. Nd3 {[%clk 0:01:38]}  Nxd3 {[%clk 0:01:50]} 22. cxd3 {[%clk 0:01:36]}  O-O {[%clk 0:00:56]} 23. d4 {[%clk 0:01:36]}  Ra5 {[%clk 0:00:42]} 24. Rc1 {[%clk 0:01:35]}  Ba6 {[%clk 0:00:42]} 25. Bxa6 {[%clk 0:01:32]}  Rxa6 {[%clk 0:00:43]} 26. Rc7 {[%clk 0:01:32]}  e6 {[%clk 0:00:34]} 27. Rec1 {[%clk 0:01:31]}  d5 {[%clk 0:00:35]} 28. e5 {[%clk 0:01:30]}  Nh7 {[%clk 0:00:33]} 29. Nh3 {[%clk 0:01:01]}  Kg7 {[%clk 0:00:30]} 30. f4 {[%clk 0:00:57]}  b3 {[%clk 0:00:21]} 31. a3 {[%clk 0:00:57]}  Raa8 {[%clk 0:00:16]} 32. R1c6 {[%clk 0:00:55]}  Rfd8 {[%clk 0:00:16]} 33. Rxe6 {[%clk 0:00:47]}  Rac8 {[%clk 0:00:17]} 34. Ree7 {[%clk 0:00:45]}  Rxc7 {[%clk 0:00:17]} 35. Rxc7 {[%clk 0:00:45]}  Kg8 {[%clk 0:00:18]} 36. Ng5 {[%clk 0:00:44]}  Nxg5 {[%clk 0:00:17]} 37. fxg5 {[%clk 0:00:44]}  Ra8 {[%clk 0:00:14]} 38. Kc1 {[%clk 0:00:42]}  Kf8 {[%clk 0:00:14]} 39. Kd2 {[%clk 0:00:40]}  Ke8 {[%clk 0:00:14]} 40. Kc3 {[%clk 0:00:32]}  Rb8 {[%clk 0:00:15]} 41. Rc5 {[%clk 0:00:30]}  Rd8 {[%clk 0:00:11]} 42. Kb4 {[%clk 0:00:28]}  Ke7 {[%clk 0:00:12]} 43. Kxa4 {[%clk 0:00:28]}  Ke6 {[%clk 0:00:12]} 44. Kxb3 {[%clk 0:00:22]}  Kf5 {[%clk 0:00:13]} 45. Kc3 {[%clk 0:00:21]}  Kg4 {[%clk 0:00:13]} 46. b4 {[%clk 0:00:21]}  Kxh4 {[%clk 0:00:14]} 47. b5 {[%clk 0:00:20]}  Kg3 {[%clk 0:00:13]} 48. a4 {[%clk 0:00:17]}  Ra8 {[%clk 0:00:13]} 49. Kb4 {[%clk 0:00:17]}  Kxg2 {[%clk 0:00:12]} 50. b6 {[%clk 0:00:17]} 1-0


[Site "https://www.chess.com"]